Cogmind - Beta 13 @@@ ROGUE MODE // 2024.04.21 @ 17:45:52 Player: Bean Result: Destroyed by G-47 Trooper with Particle Gun Performance ------------- Evolutions (2) 1000 Regions Visited (5) 1000 Robots Destroyed (19) 95 Value Destroyed (929) 929 Prototype IDs (0) 0 Alien Tech Used (0) 0 Bonus (700) 700 TOTAL SCORE: 3724 Bonus ------- Entered Garrisons 200 Used RIF Installer 500 Cogmind --------- Core Integrity 0/550 Matter 300/300 Energy 100/100 System Corruption 0% Temperature Cool (37) Movement Core (50) Location -8/Garrison Parts ------- > --- POWER (1) -------- (None) > --- PROPULSION (2) --- (None) > --- UTILITY (6) ------ Visual Processing Unit > --- WEAPON (2) ------- (None) > --- INVENTORY (5) ---- Relay Coupler [NC] (32) Relay Coupler [Swarmer] (42) Relay Coupler [Brawler] (26) Relay Coupler [Sentry] (22) Peak State ------------ > --- POWER ------------ Light Nuclear Core > --- PROPULSION ------- Titanium Leg > --- UTILITY ---------- Improved Heat Sink Improved Heat Sink Small Storage Unit Visual Processing Unit Medium Armor Plating > --- WEAPON ----------- EM Pulse Gun Light Assault Rifle > --- INVENTORY -------- Trap Extractor [Rating: 19] Favorites ----------- Power Light Nuclear Core Engine Ion Engine Power Core Light Nuclear Core Propulsion Aluminum Leg Leg Aluminum Leg Flight Unit Surge Thruster Utility Small Storage Unit Device Improved Heat Sink Storage Small Storage Unit Processor Visual Processing Unit Protection Medium Armor Plating Weapon Light Assault Rifle Energy Gun Medium Laser Ballistic Gun Light Assault Rifle Launcher EMP Blaster Slashing Weapon Blade Saw Build | -11 -10 -10 -9 -8 -8 ------- Run | Yrd Mat Min Mat Mat Gar Slots Evolved 4 | . . . 2 2 . Power . | . . . . . . Propulsion . | . . . . . . Utility 4 | . . . 2 2 . Weapon . | . . . . . . Parts Attached 34 | 6 6 . 2 12 8 Power 6 | 1 2 . . 2 1 Engine 2 | 1 1 . . . . Core 4 | . 1 . . 2 1 Reactor . | . . . . . . Propulsion 5 | 2 . . . 1 2 Treads . | . . . . . . Leg 3 | 2 . . . 1 . Wheel . | . . . . . . Hover . | . . . . . . Flight 2 | . . . . . 2 Utility 10 | 1 1 . 2 5 1 Device 6 | . 1 . 1 3 1 Storage 1 | 1 . . . . . Processor 1 | . . . 1 . . Hackware . | . . . . . . Protection 2 | . . . . 2 . Artifact . | . . . . . . Weapon 13 | 2 3 . . 4 4 Energy Gun 6 | 1 3 . . 2 . Energy Cannon . | . . . . . . Ballistic Gun 4 | 1 . . . 1 2 Ballistic Cannon . | . . . . . . Launcher 2 | . . . . 1 1 Special Weapon . | . . . . . . Impact Weapon . | . . . . . . Slashing Weapon 1 | . . . . . 1 Piercing Weapon . | . . . . . . Special Melee Weapon . | . . . . . . Unidentified Prototypes . | . . . . . . Parts Lost 23 | . 1 . 5 5 12 Power 5 | . 1 . 1 1 2 Propulsion 5 | . . . 2 . 3 Utility 5 | . . . . 3 2 Weapon 8 | . . . 2 1 5 Highest Loss Streak 7 | . 1 . 5 3 7 To Critical Strikes . | . . . . . . Average Slot Usage (%) 66 | . 99 100 93 55 52 Engine 1 | . 7 . . . . Core 4 | . 6 14 10 5 2 Leg 9 | . 28 28 19 8 2 Device 14 | . 13 14 22 11 13 Storage 9 | . 14 14 11 9 8 Processor 7 | . . . 11 9 9 Energy Gun 7 | . 20 28 18 3 2 Ballistic Gun 5 | . 7 . . 8 6 Launcher 4 | . . . . . 7 Naked Turns . | . . . . . . Heaviest Build 18 | 13 17 17 18 18 18 Greatest Support 20 | 20 20 20 20 17 17 Greatest Overweight (x) 4 | . . . 4 2 4 Average Overweight (x) 1 | . . . . . 2 Largest Inventory Capacity 8 | 8 8 8 8 8 8 Average Capacity 7 | 6 8 8 8 8 7 Most Carried 8 | 5 6 6 6 8 8 Average Carried 4 | 2 4 6 4 2 4 Final Capacity 8 | 8 8 8 8 8 5 Final Carried 6 | 2 6 6 5 2 4 Class Distribution -------------------- 81% | Mutant 16% | Scavenger-Mutant Dominant Class ---------------- Mutant | -10/Materials Mutant | -10/Mines Scavenger-Mutant | -9/Materials Mutant | -8/Materials Mutant | -8/Garrison Resources | -11 -10 -10 -9 -8 -8 ----------- Run | Yrd Mat Min Mat Mat Gar Matter Collected 572 | 258 72 . 20 117 105 Remotely . | . . . . . . Salvage Created 620 | . 136 . 164 186 134 Parts 31 | . 10 . 7 6 8 Haulers Intercepted . | . . . . . . Recyclers Shooed . | . . . . . . Parts Field Recycled . | . . . . . . Retrieved Matter . | . . . . . . Parts Self-Destructed . | . . . . . . Prevented . | . . . . . . Kills | -11 -10 -10 -9 -8 -8 ------- Run | Yrd Mat Min Mat Mat Gar Combat Hostiles Destroyed 18 | . 2 . 4 6 6 Melee 1 | . . . . . 1 Guns 13 | . 2 . 2 6 3 AOE 2 | . . . . . 2 Classes Destroyed 5 | . 2 . . 1 2 Watcher 1 | . 1 . . . . Swarmer 7 | . . . . 3 4 Cutter 1 | . . . . . 1 Grunt 9 | . 2 . 4 3 . Hunter 1 | . . . . . 1 Best Kill Streak 3 | . 1 . 2 2 3 Combat Bots Only 3 | . 1 . 2 2 3 Max Kills in Single Turn 3 | . 1 . 1 1 3 Gunslinging . | . . . . . . Exploded 2 | . . . . . 2 Melee 1 | . . . . . 1 Uniques/NPCs Destroyed . | . . . . . . Combat | -11 -10 -10 -9 -8 -8 -------- Run | Yrd Mat Min Mat Mat Gar Hostile Shots Fired 332 | . 26 . 77 85 144 Missed 114 | . 7 . 26 34 47 Damage Taken 2614 | . 256 . 635 616 1107 Core 891 | . 69 . 271 148 403 Absorbed by Shields 98 | . . . . . 98 Core Remaining (%) 68 | 100 . 72 32 . . Volleys Fired 115 | . 16 . 14 47 38 Largest 2 | . 2 . 2 2 2 Hottest 115 | . 105 . 115 60 78 Shots Fired 161 | . 32 . 28 60 41 Gun 154 | . 32 . 28 60 34 Cannon . | . . . . . . Launcher 7 | . . . . . 7 Special . | . . . . . . Kinetic 83 | . 15 . . 47 21 Thermal 44 | . 16 . 28 . . Explosive . | . . . . . . Electromagnetic 34 | . 1 . . 13 20 Robot Hit Streak 15 | . 9 . 6 15 7 Robot Miss Streak 4 | . 4 . 2 2 3 Penetration Max . | . . . . . . Secondary Targets 2 | . 1 . . 1 . Max Gunslinging Chain 1 | . 1 . . 1 . Shots Hit Robots 106 | . 21 . 20 45 20 Core Hits 43 | . 7 . 6 17 13 Critical Kills 1 | . . . . 1 . Critical Parts Destroyed . | . . . . . . Critical Strikes 5 | . 1 . 2 1 1 Burn 3 | . 1 . 2 . . Destroy 1 | . . . . 1 . Sever 1 | . . . . . 1 Melee Attacks 5 | . . . . . 5 Impact . | . . . . . . Slashing 5 | . . . . . 5 Piercing . | . . . . . . Sneak Attacks . | . . . . . . Combat Hostiles . | . . . . . . Follow-up Attacks . | . . . . . . Damage Inflicted 1213 | . 232 . 285 402 294 Guns 1045 | . 232 . 285 393 135 Cannons . | . . . . . . Explosions 107 | . . . . . 107 Melee 52 | . . . . . 52 Ramming 9 | . . . . 9 . Kinetic 464 | . 72 . . 302 90 Thermal 423 | . 138 . 285 . . Explosive . | . . . . . . Electromagnetic 265 | . 22 . . 91 152 Impact . | . . . . . . Slashing 52 | . . . . . 52 Piercing . | . . . . . . Highest Corruption 1 | . . . 1 . . Average Corruption 1 | . . . 1 . . Corruption Purged . | . . . . . . Corruption Blocked . | . . . . . . Overload Shots . | . . . . . . Overflow Damage 60 | . . . . . 60 Projectiles . | . . . . . . Explosions 60 | . . . . . 60 Melee . | . . . . . . Knockbacks . | . . . . . . Impact . | . . . . . . Kinetic . | . . . . . . Secondary . | . . . . . . Self-Inflicted Damage 130 | . . . . . 130 Shots 3 | . . . . . 3 Rammed . | . . . . . . Targets Rammed 1 | . . . . 1 . Kicked 1 | . . . . 1 . Crushed . | . . . . . . Highest Temperature 309 | . 309 . 114 . 8 Average Temperature 112 | . 161 . 48 . 8 Received Heat Transfer 876 | . 129 . 327 270 150 Siege Activations . | . . . . . . Robots Corrupted . | . . . . . . Combat Hostiles . | . . . . . . Parts Fried . | . . . . . . Impact Corruptions . | . . . . . . Robots Melted 2 | . . . 2 . . Combat Hostiles 2 | . . . 2 . . Parts Melted 3 | . 1 . 2 . . Heat Transferred 1369 | . 481 . 888 . . Parts Sabotaged . | . . . . . . Parts Stolen . | . . . . . . Parts Stripped . | . . . . . . Power Chain Reactions . | . . . . . . Alert | -11 -10 -10 -9 -8 -8 ------- Run | Yrd Mat Min Mat Mat Gar Peak Influence 352 | . 68 26 161 139 352 Initial 90 | . . 26 9 46 90 Average 174 | . 38 26 101 95 268 Maximum Alert Level 1 | . . . . . 1 Low Security (%) 59 | 100 100 100 100 100 23 Level 1 40 | . . . . . 76 Level 2 . | . . . . . . Level 3 . | . . . . . . Level 4 . | . . . . . . Level 5 . | . . . . . . High Security . | . . . . . . Max Security . | . . . . . . Squads Dispatched 3 | . . . 2 1 . Investigation 2 | . . . 1 1 . Extermination . | . . . . . . Reinforcement 1 | . . . 1 . . Assault . | . . . . . . Garrison . | . . . . . . Intercept . | . . . . . . Searches Triggered . | . . . . . . Construction Impeded . | . . . . . . Haulers Reinforced . | . . . . . . Active Scanning Responses . | . . . . . . Cargo Convoy Interrupts . | . . . . . . Stealth | -11 -10 -10 -9 -8 -8 --------- Run | Yrd Mat Min Mat Mat Gar Distress Signals 1 | . . . 1 . . Communications Jammed . | . . . . . . Distress Signals . | . . . . . . Times Spotted 44 | . 3 . 14 10 17 Peak Tracking Total 9 | . 2 . 9 4 7 Tactical Retreats 3 | . . . . . 3 Traps | -11 -10 -10 -9 -8 -8 ------- Run | Yrd Mat Min Mat Mat Gar Traps Triggered 8 | . 1 . 1 . 6 Indirectly 1 | . . . . . 1 Trap Hack Attempts . | . . . . . . Triggered . | . . . . . . Disarmed . | . . . . . . Reprogrammed . | . . . . . . Reused . | . . . . . . Traps Extracted . | . . . . . . Installed . | . . . . . . Triggered . | . . . . . . Machines | -11 -10 -10 -9 -8 -8 ---------- Run | Yrd Mat Min Mat Mat Gar Machines Disabled 3 | . . . . . 3 Max in Single Turn 2 | . . . . . 2 Garrison Relay 1 | . . . . . 1 Phase Generator 1 | . . . . . 1 Machines Repaired . | . . . . . . Machines Dismantled . | . . . . . . Machines Sabotaged . | . . . . . . Overloaded Fab Kills . | . . . . . . Hacking | -11 -10 -10 -9 -8 -8 --------- Run | Yrd Mat Min Mat Mat Gar Machines Accessed 8 | . 3 . 2 3 . Terminals 7 | . 3 . 2 2 . Fabricators . | . . . . . . Repair Stations . | . . . . . . Recycling Units . | . . . . . . Scanalyzers . | . . . . . . Garrison Access 1 | . . . . 1 . Total Hacks 19 | . 8 . 5 6 . Successful 12 | . 7 . 2 3 . Failed 7 | . 1 . 3 3 . Catastrophic 1 | . . . . 1 . Database Lockouts . | . . . . . . Manual 16 | . 6 . 5 5 . Terminals 18 | . 8 . 5 5 . Fabricators . | . . . . . . Repair Stations . | . . . . . . Recycling Units . | . . . . . . Scanalyzers . | . . . . . . Garrison Access 1 | . . . . 1 . Terminal Hacks 6 | . 4 . 1 1 . Record 1 | . 1 . . . . Terminal Index 3 | . 1 . 1 1 . Alert Level 2 | . 2 . . . . Fabricator Hacks . | . . . . . . Repair Station Hacks . | . . . . . . Recycling Unit Hacks . | . . . . . . Scanalyzer . | . . . . . . Garrison Access Hacks 1 | . . . . 1 . Unlock Access 1 | . . . . 1 . Unauthorized Hacks 5 | . 3 . 1 1 . Terminals 5 | . 3 . 1 1 . Botnet 5 | . 3 . 1 1 . Fabricators . | . . . . . . Repair Stations . | . . . . . . Recycling Units . | . . . . . . Scanalyzers . | . . . . . . Garrison Access . | . . . . . . Data Cores Recovered . | . . . . . . Used . | . . . . . . Hacking Detections 6 | . 2 . 2 2 . Full Trace Events 3 | . . . 1 2 . Feedback Events . | . . . . . . Feedback Blocked . | . . . . . . Robot Schematics Acquired . | . . . . . . Robots Built . | . . . . . . Authchips . | . . . . . . Time . | . . . . . . Total Robot Build Rating . | . . . . . . Part Schematics Acquired . | . . . . . . Parts Built . | . . . . . . Authchips . | . . . . . . Time . | . . . . . . Total Part Build Rating . | . . . . . . Parts Repaired . | . . . . . . Time . | . . . . . . Parts Recycled . | . . . . . . Recycled Matter . | . . . . . . Retrieved Matter . | . . . . . . Retrieved Components . | . . . . . . Parts Scanalyzed . | . . . . . . Part Schematics Acquired . | . . . . . . Parts Damaged . | . . . . . . Bothacking | -11 -10 -10 -9 -8 -8 ------------ Run | Yrd Mat Min Mat Mat Gar Used RIF Installer 1 | . . . . . 1 Robots Hacked . | . . . . . . Non-combat . | . . . . . . Combat . | . . . . . . Robot Hacks Applied . | . . . . . . Relay Couplers Released 4 | . . . . . 4 Machine Destruction 4 | . . . . . 4 Fabnet Peak Effective % . | . . . . . . Robots Rewired . | . . . . . . Allies Hacked . | . . . . . . Hacks Repelled . | . . . . . . Allies | -11 -10 -10 -9 -8 -8 -------- Run | Yrd Mat Min Mat Mat Gar Total Allies . | . . . . . . Largest Group . | . . . . . . Highest-Rated Group . | . . . . . . Highest-Rated Ally . | . . . . . . Total Orders . | . . . . . . Ally Attacks . | . . . . . . Total Damage . | . . . . . . Kills . | . . . . . . Allies Corrupted . | . . . . . . Allies Melted . | . . . . . . Intel | -11 -10 -10 -9 -8 -8 ------- Run | Yrd Mat Min Mat Mat Gar Robot Analysis Total . | . . . . . . Derelict Logs Recovered . | . . . . . . Drone Launches . | . . . . . . Drone Recoveries . | . . . . . . Exploration | -11 -10 -10 -9 -8 -8 ------------- Run | Yrd Mat Min Mat Mat Gar Turns Passed 1735 | 52 235 28 235 282 903 Spaces Moved 846 | 38 147 24 148 132 357 Core 262 | 10 . . 12 28 212 Treads . | . . . . . . Legs 549 | 28 147 24 136 104 110 Wheels . | . . . . . . Hover . | . . . . . . Flight 35 | . . . . . 35 Fastest Speed 32 | 50 120 120 120 100 32 Average Speed 155 | 101 120 120 125 125 201 Slowest Speed 250 | 120 120 120 250 200 250 Overloaded Moves 1 | . . . . . 1 Propulsion Burnouts . | . . . . . . Robots Hopped . | . . . . . . Cave-ins Triggered . | . . . . . . Exploration Rate (%) 19 | 3 28 9 19 17 41 Regions Visited 5 Branch Regions 1 Pre-discovered Areas . | . . . . . . Known Exits Taken 1 | . . . . 1 . Unknown Exits Taken 4 | 1 1 1 1 . . Scrap Searched . | . . . . . . Spaces Dug . | . . . . . . Terrain Destroyed 79 | . . . . . 79 Melee . | . . . . . . Projectile . | . . . . . . AOE 79 | . . . . . 79 Terrain Rammed . | . . . . . . Walls Destroyed . | . . . . . . Machines Disabled . | . . . . . . Actions | -11 -10 -10 -9 -8 -8 --------- Run | Yrd Mat Min Mat Mat Gar Total 1116 | 51 174 23 170 200 498 Wait 18 | . . . 4 . 14 Move 841 | 37 146 23 147 131 357 Hop . | . . . . . . Pick Up 34 | 8 6 . 2 5 13 Fast Attach . | . . . . . . Attach 30 | 6 2 . 2 12 8 Detach 5 | . . . . 4 1 Swap 4 | . 4 . . . . Drop 5 | . . . 1 . 4 Fire 115 | . 16 . 14 47 38 Melee 5 | . . . . . 5 Ram . | . . . . . . Kick 1 | . . . . 1 . Crush . | . . . . . . Escape Stasis 58 | . . . . . 58 Rewire . | . . . . . . Trap . | . . . . . . Miscellaneous . | . . . . . . Route ------- -11/Scrapyard -10/Materials -10/Mines -9/Materials -8/Materials -8/Garrison History --------- Turn | Location | Event 4 | -11/Scrapyard | Discovered new exit (range 15) 53 | -11/Scrapyard | Entered Materials 259 | -10/Materials | Discovered new exit (range 13) 288 | -10/Materials | Entered Mines 300 | -10/Mines | Discovered new exit (range 13) 316 | -10/Mines | Entered Materials 316 | -9/Materials | Evolved 2 slots: Utility x2 523 | -9/Materials | Discovered new exit (range 17) 541 | -9/Materials | Core integrity fell below 50% 551 | -9/Materials | Entered another Materials area 551 | -8/Materials | Evolved 2 slots: Utility x2 566 | -8/Materials | Lost 5 parts (1p2n2w) 772 | -8/Materials | Lost 3 parts (3u) 823 | -8/Materials | Identified exit to Garrison 833 | -8/Materials | Entered Garrison 871 | -8/Garrison | Triggered checkpoint 978 | -8/Garrison | Build established: Mutant 1042 | -8/Garrison | Phase Generator disabled 1343 | -8/Garrison | Triggered checkpoint 1403 | -8/Garrison | Installed Relay Interface Framework 1639 | -8/Garrison | Triggered checkpoint 1653 | -8/Garrison | Core integrity fell below 50% 1691 | -8/Garrison | Triggered checkpoint 1722 | -8/Garrison | Lost 7 parts (1p2u4w) 1731 | -8/Garrison | Core integrity fell below 20% 1736 | -8/Garrison | Destroyed by G-47 Trooper with Particle Gun Last Messages --------------- Field strength at 44. Field strength at 28. Field strength at 20. Surge Thruster destroyed. Critical hit (Burn: +25). Field strength at 2. Stasis field depleted. Triggered Stasis Trap. A bubble of rippling energy engulfs the area. Field strength at 95. Field strength at 90. Field strength at 81. Field strength at 74. Field strength at 61. Field strength at 50. Critical hit (Burn: +27). Field strength at 33. Surge Thruster destroyed. Critical hit (Burn: +26). Field strength at 20. Map ----- +----------------------------------------------------+ | ??????####?? ???????????????????????????????????? | | ????? ?? #??????????????????????????????????? | | ???### #? ##?????????????????????????????????? | | ? #?????????????????????????????????? | | T?????????????????????????????????? | | ? #?????????????????????????????????? | | # ## ## #?????????????????????????????????? | | # ## ## ###???????????????????????????????? | | " #???????????????????????????????? | | " #???????????????????????????????? | | " ^ #???????????????????????????????? | | " ????????????????????????????????? | | # ## ## #?????????????????????????????????? | | # ## ## #?????????????????????????????????? | | #####?????????????????????????????? | | #?????????????????????????????? | | #?# ??????????????????????????????? | | ######% % ## #?# #?????????????????????????????? | | #????# ## #?# ?????????????????????????????? | | ###### ##### #?# #?????????????????????????????? | | ![#???# #?# #?????????????????????????????? | | ########???# #?# #?????????????????????????????? | | #??????????# #?# #?????????????????????????????? | | #??????????# ### ############# #######?????????? | | #??????????# g ??????? | | #??????????# g @ ??????? | | #??????????# g g s ??????? | | #??????????####### ############ ######?????????? | | #????????????????# #????????????????????????????? | | #????????????????# #????????????????????????????? | | #????????????????# ############ #??????????????? | | #????????????????# #??????????????? | | #????????????????# [ #??????????????? | | #????????????????## #####"""#####??????????????? | | #????????????????#"""""??????????????????????????? | | #????????????????#######?????????????????????????? | | ##???????????????????????????????????????????????? | | #???????????????????????????????????????????????? | | "#???????????????????????????????????????????????? | | "#???????????????????????????????????????????????? | | "#???????????????????????????????????????????????? | | "#???????????????????????????????????????????????? | | ##???????????????????????????????????????????????? | | ?????????????????????????????????????????????????? | | ?????????????????????????????????????????????????? | | ?????????????????????????????????????????????????? | | ?????????????????????????????????????????????????? | | ?????????????????????????????????????????????????? | | ?????????????????????????????????????????????????? | | ?????????????????????????????????????????????????? | +----------------------------------------------------+ Best States ------------- Heat Dissipation 59 Energy Generation 14 Energy Capacity 250 Matter Stores 300 Matter Capacity 300 Sight Range 18 Terrain Scan Density 10 Armor Coverage 225 Evasion (%) 63 Trap Extractor Capacity 4 Item Schematics ----------------- None Robot Schematics ------------------ None Fabricated ------------ Nothing Alien Tech Used ----------------- None Achievements -------------- None Challenges ------------ None Game ------ Seed ExperimentalVisualScrap Manual? 0 Play Time 00:19:51 Cumulative 13.7 hours Start 2024.04.21 @ 13:08:22 End 2024.04.21 @ 17:45:52 Sessions 1 Manual Loads 0 Difficulty Rogue Special Mode None Game No. 35 Rogue 35 Adventurer 0 Explorer 0 Win Type - Total 0 Types 0/0/0/0/0/0/0/0/0 Lore% 19 Gallery% 24 Achievement% 21 Wizard Run 0 Options --------- Layout 2 ASCII 0 Keyboard 0 Movement Numpad Keybinds 0 Fullscreen 1 Font 24/Smallcaps Map View 50x44 Zoom Use 0% Tactical HUD 0 Map Filters NONE Filters NONE Steam 1 RUN: b4fdbdf6-09db-44e4-bc68-78bdca035a83